[Event "DVM U12w 2023"]
[Site "Magdeburg"]
[Date "2023.12.29"]
[Round "5"]
[White "Funke, Luise"]
[Black "Fedorova, Marina"]
[Result "1-0"]
[WhiteElo "1018"]
[BlackElo "1144"]
[PlyCount "101"]
[EventDate "2022.12.27"]
[EventType "team-tourn"]
[EventRounds "7"]
[EventCountry "GER"]
[TimeControl "40/5400+30:1800+30"]
[WhiteClock "0:36:41"]
[BlackClock "0:27:55"]

1. e4 {[%emt 0:00:02]} Nf6 {[%emt 0:00:06]} 2. e5 {[%emt 0:00:08]} Nd5 {[%emt 0:00:07]} 3. c4 {[%emt 0:00:12]} Nb6 {[%emt 0:00:10]} 4. c5 {[%emt 0:00:18]} Nd5 {[%emt 0:00:49]} 5. Nc3 {[%emt 0:00:12]} Nxc3 {[%emt 0:01:32]} 6. bxc3 {[%emt 0:00:15]} e6 {[%emt 0:04:45]} 7. d4 {[%emt 0:00:22]} d6 {[%emt 0:00:52]} 8. exd6 {[%emt 0:00:46]} cxd6 {[%emt 0:00:09]} 9. cxd6 {[%emt 0:00:20]} Bxd6 {[%emt 0:00:15]} 10. Nf3 {[%emt 0:00:45]} O-O {[%emt 0:00:45]} 11. Bd3 {[%emt 0:00:24]} Nd7 {[%emt 0:06:52]} 12. O-O {[%emt 0:00:49]} Qe7 {[%emt 0:04:04]} 13. Re1 {[%emt 0:05:58]} Re8 {[%emt 0:04:26]} 14. Bc2 {[%emt 0:01:10]} e5 {[%emt 0:01:47]} 15. Rb1 {[%emt 0:19:41]} a6 {[%emt 0:12:45]} 16. dxe5 {[%emt 0:02:51]} Nxe5 {[%emt 0:03:03]} 17. Nxe5 {[%emt 0:00:33]} Bxe5 {[%emt 0:00:37]} 18. Re3 {[%emt 0:10:22]} Qc7 {[%emt 0:05:25]} 19. Qh5 {[%emt 0:03:11]} g6 {[%emt 0:03:59]} 20. Qh6 {[%emt 0:04:14]} Bd7 {[%emt 0:16:02]} 21. Bd2 {[%emt 0:10:41]} Red8 {[%emt 0:06:50]} 22. Rd3 {[%emt 0:07:38]} Bb5 {[%emt 0:05:31]} 23. Rh3 {[%emt 0:05:17]} f5 {[%emt 0:02:03]} 24. Bb3+ {[%emt 0:01:27]} Kh8 {[%emt 0:01:46]} 25. Bg5 {[%emt 0:05:31]} Rd7 {[%emt 0:02:30]} 26. Qxg6 {[%emt 0:06:06]} Qxc3 {[%emt 0:06:38]} 27. Rxc3 {[%emt 0:04:17]} hxg6 {[%emt 0:00:07]} 28. Rh3+ {[%emt 0:00:21]} Kg7 {[%emt 0:00:25]} 29. Bh6+ {[%emt 0:00:26]} Kf6 {[%emt 0:00:28]} 30. Re1 {[%emt 0:00:38]} Rad8 {[%emt 0:01:04]} 31. f4 {[%emt 0:00:44]} Bd4+ {[%emt 0:00:39]} 32. Kh1 {[%emt 0:00:45]} g5 {[%emt 0:03:49]} 33. Bxg5+ {[%emt 0:00:33]} Kg6 {[%emt 0:01:48]} 34. Re6+ {[%emt 0:02:27]} Kg7 {[%emt 0:00:52]} 35. Bxd8 {[%emt 0:00:34]} Rxd8 {[%emt 0:00:14]} 36. Rg3+ {[%emt 0:00:33]} Kf8 {[%emt 0:00:36]} 37. Rg5 {[%emt 0:01:02]} Bd3 {[%emt 0:00:45]} 38. Rh5 {[%emt 0:00:40]} Rc8 {[%emt 0:00:39]} 39. h4 {[%emt 0:00:29]} Rc1+ {[%emt 0:01:26]} 40. Kh2 {[%emt 0:00:35]} Bg1+ {[%emt 0:00:41]} 41. Kh3 {[%emt 0:30:51]} Bd4 {[%emt 0:30:45]} 42. Rd6 {[%emt 0:01:34]} Rh1+ {[%emt 0:02:06]} 43. Kg3 {[%emt 0:00:14]} Be2 {[%emt 0:00:00]} 44. Rxf5+ {[%emt 0:00:00]} Ke7 {[%emt 0:00:00]} 45. Rxd4 {[%emt 0:00:00]} Rc1 {[%emt 0:00:00]} 46. Re5+ {[%emt 0:00:00]} Kf6 {[%emt 0:00:00]} 47. Rxe2 {[%emt 0:00:00]} Rc3+ {[%emt 0:00:00]} 48. Kg4 {[%emt 0:00:00]} Rc5 {[%emt 0:00:00]} 49. Re6+ {[%emt 0:00:00]} Kg7 {[%emt 0:00:00]} 50. Rd7+ {[%emt 0:00:00]} Kf8 {[%emt 0:00:00]} 51. h5 {[%emt 0:00:00] normal} 1-0

[Event "DVM U12w 2023"]
[Site "Magdeburg"]
[Date "2023.12.29"]
[Round "5"]
[White "Grey, Paula"]
[Black "Özdemir, Anna Valentina"]
[Result "1-0"]
[WhiteElo "1008"]
[BlackElo "693"]
[PlyCount "63"]
[EventDate "2022.12.27"]
[EventType "team-tourn"]
[EventRounds "7"]
[EventCountry "GER"]
[TimeControl "40/5400+30:1800+30"]
[WhiteClock "0:31:53"]
[BlackClock "1:18:50"]

1. e4 {[%emt 0:00:02]} e5 {[%emt 0:00:06]} 2. Nf3 {[%emt 0:00:19]} Nc6 {[%emt 0:00:08]} 3. Bc4 {[%emt 0:00:09]} Be7 {[%emt 0:00:14]} 4. Nc3 {[%emt 0:00:59]} d6 {[%emt 0:00:28]} 5. h3 {[%emt 0:00:17]} Nf6 {[%emt 0:00:24]} 6. d3 {[%emt 0:00:34]} O-O {[%emt 0:00:25]} 7. O-O {[%emt 0:00:59]} Na5 {[%emt 0:00:40]} 8. Bb3 {[%emt 0:02:09]} Nxb3 {[%emt 0:00:29]} 9. axb3 {[%emt 0:00:48]} Be6 {[%emt 0:00:36]} 10. Ng5 {[%emt 0:02:29]} Bc8 {[%emt 0:01:22]} 11. Nf3 {[%emt 0:03:42]} d5 {[%emt 0:01:07]} 12. exd5 {[%emt 0:03:04]} Nxd5 {[%emt 0:00:27]} 13. Nxe5 {[%emt 0:08:12]} Nxc3 {[%emt 0:00:57]} 14. bxc3 {[%emt 0:01:11]} Qd6 {[%emt 0:00:24]} 15. Bf4 {[%emt 0:06:48]} Bf6 {[%emt 0:00:45]} 16. Ng6 {[%emt 0:01:37]} Be5 {[%emt 0:02:39]} 17. Nxe5 {[%emt 0:02:29]} Qf6 {[%emt 0:00:50]} 18. Bg3 {[%emt 0:04:03]} Qg5 {[%emt 0:00:50]} 19. Qe2 {[%emt 0:08:18]} h5 {[%emt 0:01:04]} 20. h4 {[%emt 0:01:33]} Qe7 {[%emt 0:01:45]} 21. Rfe1 {[%emt 0:02:59]} Qc5 {[%emt 0:01:47]} 22. c4 {[%emt 0:00:42]} b5 {[%emt 0:00:41]} 23. cxb5 {[%emt 0:02:30]} Qxb5 {[%emt 0:00:22]} 24. d4 {[%emt 0:03:57]} Qd5 {[%emt 0:00:29]} 25. Qe4 {[%emt 0:01:43]} Qb5 {[%emt 0:01:13]} 26. Qxa8 {[%emt 0:03:25]} Bb7 {[%emt 0:00:30]} 27. Qxa7 {[%emt 0:02:49]} Qd5 {[%emt 0:00:17]} 28. Nf3 {[%emt 0:01:07]} Kh7 {[%emt 0:03:41]} 29. Qc5 {[%emt 0:02:05]} Qd8 {[%emt 0:01:13]} 30. Qxh5+ {[%emt 0:01:34]} Kg8 {[%emt 0:00:45]} 31. Ng5 {[%emt 0:00:56]} f6 {[%emt 0:00:32]} 32. Qh7# {[%emt 0:01:08] normal} 1-0

[Event "DVM U12w 2023"]
[Site "Magdeburg"]
[Date "2023.12.29"]
[Round "5"]
[White "Nehrukumar, Rithika"]
[Black "Rätsch, Elina"]
[Result "1-0"]
[WhiteElo "989"]
[BlackElo "869"]
[PlyCount "77"]
[EventDate "2022.12.27"]
[EventType "team-tourn"]
[EventRounds "7"]
[EventCountry "GER"]
[TimeControl "40/5400+30:1800+30"]
[WhiteClock "1:17:51"]
[BlackClock "1:25:03"]

1. e4 {[%emt 0:00:01]} c6 {[%emt 0:00:09]} 2. d4 {[%emt 0:00:21]} d5 {[%emt 0:00:10]} 3. Nc3 {[%emt 0:00:14]} dxe4 {[%emt 0:00:18]} 4. Nxe4 {[%emt 0:00:06]} Bf5 {[%emt 0:00:57]} 5. Bd3 {[%emt 0:00:29]} Nf6 {[%emt 0:00:23]} 6. Qe2 {[%emt 0:01:15]} e6 {[%emt 0:00:34]} 7. Bg5 {[%emt 0:00:24]} Be7 {[%emt 0:00:20]} 8. Nf3 {[%emt 0:00:29]} h6 {[%emt 0:00:33]} 9. Bxf6 {[%emt 0:02:08]} Bxf6 {[%emt 0:00:23]} 10. Nxf6+ {[%emt 0:00:08]} Qxf6 {[%emt 0:00:26]} 11. O-O-O {[%emt 0:01:13]} Bg4 {[%emt 0:01:41]} 12. Be4 {[%emt 0:00:55]} Bxf3 {[%emt 0:00:37]} 13. Bxf3 {[%emt 0:00:06]} Qg5+ {[%emt 0:00:16]} 14. Kb1 {[%emt 0:01:00]} O-O {[%emt 0:00:19]} 15. h4 {[%emt 0:00:43]} Qa5 {[%emt 0:00:44]} 16. a3 {[%emt 0:00:20]} b5 {[%emt 0:00:14]} 17. Qe5 {[%emt 0:01:15]} Nd7 {[%emt 0:00:35]} 18. Qd6 {[%emt 0:03:49]} Nf6 {[%emt 0:01:33]} 19. Bxc6 {[%emt 0:00:45]} Rfd8 {[%emt 0:00:29]} 20. Qf4 {[%emt 0:01:51]} Rac8 {[%emt 0:00:31]} 21. Bf3 {[%emt 0:01:21]} b4 {[%emt 0:00:48]} 22. Qd2 {[%emt 0:02:32]} Rb8 {[%emt 0:00:34]} 23. g4 {[%emt 0:00:58]} h5 {[%emt 0:04:13]} 24. g5 {[%emt 0:00:45]} Nh7 {[%emt 0:00:28]} 25. Bxh5 {[%emt 0:00:13]} e5 {[%emt 0:01:28]} 26. g6 {[%emt 0:01:35]} Nf6 {[%emt 0:00:23]} 27. gxf7+ {[%emt 0:00:07]} Kh8 {[%emt 0:00:23]} 28. Bg6 {[%emt 0:00:40]} Qb5 {[%emt 0:00:55]} 29. Qxb4 {[%emt 0:00:18]} Qxb4 {[%emt 0:00:14]} 30. axb4 {[%emt 0:00:06]} Rxb4 {[%emt 0:00:21]} 31. dxe5 {[%emt 0:00:07]} Rxd1+ {[%emt 0:00:47]} 32. Rxd1 {[%emt 0:00:05]} Nh7 {[%emt 0:00:46]} 33. Bxh7 {[%emt 0:00:51]} Rb8 {[%emt 0:00:09]} 34. e6 {[%emt 0:00:15]} Kxh7 {[%emt 0:00:22]} 35. e7 {[%emt 0:00:07]} g6 {[%emt 0:00:22]} 36. e8=Q {[%emt 0:00:08]} Rxe8 {[%emt 0:00:08]} 37. fxe8=Q {[%emt 0:02:21]} Kh6 {[%emt 0:00:39]} 38. h5 {[%emt 0:01:28]} a5 {[%emt 0:00:15]} 39. Qxg6# {[%emt 0:00:40] normal} 1-0

[Event "DVM U12w 2023"]
[Site "Magdeburg"]
[Date "2023.12.29"]
[Round "5"]
[White "Khachaturyan, Viktoria"]
[Black "Martin, Helene"]
[Result "0-1"]
[WhiteElo "987"]
[BlackElo "989"]
[PlyCount "80"]
[EventDate "2022.12.27"]
[EventType "team-tourn"]
[EventRounds "7"]
[EventCountry "GER"]
[TimeControl "40/5400+30:1800+30"]
[WhiteClock "1:23:56"]
[BlackClock "0:50:40"]

1. e4 {[%emt 0:00:01]} g6 {[%emt 0:00:07]} 2. d4 {[%emt 0:00:36]} Bg7 {[%emt 0:00:05]} 3. Nf3 {[%emt 0:00:15]} c6 {[%emt 0:02:07]} 4. Bc4 {[%emt 0:01:07]} d6 {[%emt 0:03:16]} 5. h3 {[%emt 0:00:34]} b5 {[%emt 0:01:06]} 6. Bb3 {[%emt 0:00:24]} Nd7 {[%emt 0:00:26]} 7. Ng5 {[%emt 0:00:43]} e6 {[%emt 0:01:39]} 8. d5 {[%emt 0:00:27]} Nc5 {[%emt 0:00:42]} 9. Qf3 {[%emt 0:00:28]} Bf6 {[%emt 0:01:00]} 10. Nxf7 {[%emt 0:02:33]} Kxf7 {[%emt 0:01:11]} 11. Bg5 {[%emt 0:00:17]} Bb7 {[%emt 0:05:15]} 12. O-O {[%emt 0:02:23]} Qe7 {[%emt 0:05:29]} 13. dxe6+ {[%emt 0:00:32]} Ke8 {[%emt 0:02:08]} 14. Bxf6 {[%emt 0:00:56]} Qxf6 {[%emt 0:02:19]} 15. Qg3 {[%emt 0:01:39]} Nxb3 {[%emt 0:19:15]} 16. axb3 {[%emt 0:00:36]} Qxe6 {[%emt 0:00:53]} 17. Re1 {[%emt 0:01:17]} Qe5 {[%emt 0:01:05]} 18. f4 {[%emt 0:00:47]} Qc5+ {[%emt 0:00:32]} 19. Kh1 {[%emt 0:00:24]} Kd7 {[%emt 0:00:45]} 20. Qg4+ {[%emt 0:00:35]} Kc7 21. e5 {[%emt 0:00:30]} Rd8 22. Qe6 {[%emt 0:00:30]} Bc8 23. exd6+ {[%emt 0:00:30]} Qxd6 24. Qe3 {[%emt 0:00:30]} Qd4 25. Qg3 {[%emt 0:00:30]} Bf5 26. c3 {[%emt 0:00:30]} Qb6 27. c4 {[%emt 0:00:30]} Kb8 28. cxb5 {[%emt 0:00:30]} Rd3 29. Qh2 {[%emt 0:00:30]} Qd4 30. g4 {[%emt 0:00:30]} Be4+ 31. Rxe4 {[%emt 0:00:30]} Qxe4+ 32. Kg1 {[%emt 0:00:30]} Rd1+ 33. Kf2 {[%emt 0:00:30]} Qc2+ 34. Kg3 {[%emt 0:00:30]} Rd3+ 35. Kh4 {[%emt 0:00:30]} Qxh2 36. Kg5 {[%emt 0:00:30]} h6+ 37. Kxg6 {[%emt 0:00:30]} Qxf4 38. Kg7 {[%emt 0:00:30]} Qe5+ 39. Kf7 {[%emt 0:00:30]} Rf3+ 40. Kg6 {[%emt 0:00:30]} Ne7# {normal} 0-1

[Event "DVM U12w 2023"]
[Site "Magdeburg"]
[Date "2023.12.29"]
[Round "5"]
[White "Trush, Diana"]
[Black "Oschinski, Mathilda"]
[Result "1-0"]
[WhiteElo "980"]
[BlackElo "1155"]
[PlyCount "75"]
[EventDate "2022.12.27"]
[EventType "team-tourn"]
[EventRounds "7"]
[EventCountry "GER"]
[TimeControl "40/5400+30:1800+30"]
[WhiteClock "0:54:29"]
[BlackClock "0:22:16"]

1. e4 {[%emt 0:00:41]} c5 {[%emt 0:00:02]} 2. Nf3 {[%emt 0:01:22]} Nc6 {[%emt 0:00:10]} 3. c3 {[%emt 0:05:43]} g6 {[%emt 0:07:26]} 4. d4 {[%emt 0:04:50]} b6 {[%emt 0:00:33]} 5. d5 {[%emt 0:07:38]} Na5 {[%emt 0:02:59]} 6. b4 {[%emt 0:01:43]} cxb4 {[%emt 0:03:02]} 7. cxb4 {[%emt 0:00:28]} Bg7 {[%emt 0:00:45]} 8. e5 {[%emt 0:00:51]} Nb7 {[%emt 0:00:23]} 9. Bb2 {[%emt 0:02:10]} d6 {[%emt 0:02:33]} 10. a4 {[%emt 0:02:35]} e6 {[%emt 0:01:42]} 11. dxe6 {[%emt 0:00:29]} Bxe6 {[%emt 0:00:29]} 12. a5 {[%emt 0:01:19]} bxa5 {[%emt 0:02:03]} 13. bxa5 {[%emt 0:00:28]} Nxa5 {[%emt 0:00:54]} 14. Qa4+ {[%emt 0:00:25]} Qd7 {[%emt 0:05:14]} 15. Qxa5 {[%emt 0:05:54]} Qc8 {[%emt 0:03:49]} 16. Qa4+ {[%emt 0:00:42]} Bd7 {[%emt 0:01:58]} 17. Qf4 {[%emt 0:00:42]} Ne7 {[%emt 0:04:29]} 18. Bc4 {[%emt 0:01:12]} f5 {[%emt 0:09:22]} 19. exf6 {[%emt 0:06:06]} Bxf6 {[%emt 0:03:46]} 20. Qxf6 {[%emt 0:00:11]} Rf8 {[%emt 0:02:07]} 21. Qh4 {[%emt 0:01:21]} Rb8 {[%emt 0:02:05]} 22. Bc3 {[%emt 0:00:46]} Nf5 {[%emt 0:07:24]} 23. Qe4+ {[%emt 0:00:54]} Ne7 {[%emt 0:01:12]} 24. O-O {[%emt 0:00:15]} Bf5 {[%emt 0:03:48]} 25. Qe2 {[%emt 0:00:17]} Kd7 {[%emt 0:01:24]} 26. Rxa7+ {[%emt 0:00:30]} Rb7 {[%emt 0:00:29]} 27. Bb5+ {[%emt 0:00:19]} Nc6 {[%emt 0:00:59]} 28. Ne5+ {[%emt 0:01:32]} Kc7 {[%emt 0:05:58]} 29. Rxb7+ {[%emt 0:00:37]} Qxb7 {[%emt 0:00:51]} 30. Qc4 {[%emt 0:00:23]} Bd7 {[%emt 0:00:47]} 31. Ba5+ {[%emt 0:00:16]} Kb8 {[%emt 0:01:16]} 32. Nxd7+ {[%emt 0:00:23]} Qxd7 {[%emt 0:00:31]} 33. Bxc6 {[%emt 0:00:13]} Qa7 {[%emt 0:02:55]} 34. Qb5+ {[%emt 0:00:45]} Kc8 {[%emt 0:00:48]} 35. Bd7+ {[%emt 0:00:24]} Qxd7 {[%emt 0:00:36]} 36. Rc1+ {[%emt 0:00:16]} Qc7 {[%emt 0:00:29]} 37. Bxc7 {[%emt 0:00:09]} Re8 {[%emt 0:01:26]} 38. Ba5# {[%emt 0:00:12] normal} 1-0

[Event "DVM U12w 2023"]
[Site "Magdeburg"]
[Date "2023.12.29"]
[Round "5"]
[White "Poberezhna, Anna"]
[Black "Lehmann, Clara Theres"]
[Result "1/2-1/2"]
[WhiteElo "951"]
[BlackElo "781"]
[PlyCount "123"]
[EventDate "2022.12.27"]
[EventType "team-tourn"]
[EventRounds "7"]
[EventCountry "GER"]
[TimeControl "40/5400+30:1800+30"]
[WhiteClock "1:29:50"]
[BlackClock "1:12:03"]

1. e4 {[%emt 0:00:01]} e5 {[%emt 0:00:02]} 2. Nf3 {[%emt 0:00:07]} Nc6 {[%emt 0:00:05]} 3. Bc4 {[%emt 0:00:06]} Bc5 {[%emt 0:00:05]} 4. O-O {[%emt 0:00:07]} d6 {[%emt 0:00:20]} 5. h3 {[%emt 0:00:08]} Bd7 {[%emt 0:00:35]} 6. d3 {[%emt 0:00:12]} Qe7 {[%emt 0:00:44]} 7. Ng5 {[%emt 0:01:03]} Nh6 {[%emt 0:01:53]} 8. Nc3 {[%emt 0:00:13]} f6 {[%emt 0:00:10]} 9. Qh5+ {[%emt 0:00:43]} g6 {[%emt 0:01:28]} 10. Qxh6 {[%emt 0:00:15]} fxg5 {[%emt 0:00:09]} 11. Bxg5 {[%emt 0:00:16]} Qf8 {[%emt 0:02:10]} 12. Qxf8+ {[%emt 0:00:48]} Rxf8 {[%emt 0:00:08]} 13. Nd5 {[%emt 0:00:52]} Rc8 {[%emt 0:06:34]} 14. c3 {[%emt 0:00:57]} Rh8 {[%emt 0:00:36]} 15. Nf6+ {[%emt 0:00:45]} Kd8 {[%emt 0:02:20]} 16. Nxh7+ {[%emt 0:00:54]} Ke8 {[%emt 0:00:41]} 17. Nf6+ {[%emt 0:00:34]} Kd8 {[%emt 0:00:12]} 18. Bf7 {[%emt 0:01:34]} Ra8 {[%emt 0:04:49]} 19. Bxg6 {[%emt 0:01:52]} Kc8 {[%emt 0:02:49]} 20. b4 {[%emt 0:01:46]} Bb6 {[%emt 0:00:26]} 21. b5 {[%emt 0:00:32]} Na5 {[%emt 0:00:35]} 22. Nd5 {[%emt 0:01:08]} Kb8 {[%emt 0:03:09]} 23. Nxb6 {[%emt 0:00:54]} axb6 {[%emt 0:00:13]} 24. f4 {[%emt 0:00:21]} Rg8 {[%emt 0:00:48]} 25. f5 {[%emt 0:00:30]} Kc8 {[%emt 0:01:18]} 26. Rad1 {[%emt 0:01:52]} Kb8 {[%emt 0:00:25]} 27. d4 {[%emt 0:00:27]} exd4 {[%emt 0:00:24]} 28. Rxd4 {[%emt 0:00:09]} Bxb5 {[%emt 0:00:18]} 29. Rf4 {[%emt 0:00:41]} Nc6 {[%emt 0:00:36]} 30. Rd5 {[%emt 0:00:17]} Bc4 {[%emt 0:01:03]} 31. Rd2 {[%emt 0:00:53]} Bxa2 {[%emt 0:00:42]} 32. Rff2 {[%emt 0:00:58]} Bc4 {[%emt 0:01:51]} 33. Kh2 {[%emt 0:00:11]} Ne5 {[%emt 0:00:39]} 34. h4 {[%emt 0:00:23]} Ka7 {[%emt 0:01:07]} 35. Ra2+ {[%emt 0:00:26]} Bxa2 {[%emt 0:00:09]} 36. Rxa2+ {[%emt 0:00:08]} Kb8 {[%emt 0:00:02]} 37. Rxa8+ {[%emt 0:00:12]} Kxa8 {[%emt 0:00:05]} 38. Kh3 {[%emt 0:00:29]} c6 {[%emt 0:00:57]} 39. h5 {[%emt 0:00:17]} d5 {[%emt 0:00:27]} 40. exd5 {[%emt 0:00:08]} cxd5 {[%emt 0:00:10]} 41. f6 {[%emt 0:30:31]} b5 {[%emt 0:30:20]} 42. Kh4 {[%emt 0:00:16]} b4 {[%emt 0:00:29]} 43. cxb4 {[%emt 0:00:07]} d4 {[%emt 0:00:03]} 44. h6 {[%emt 0:00:40]} Nxg6+ {[%emt 0:00:13]} 45. Kh5 {[%emt 0:00:10]} d3 {[%emt 0:00:09]} 46. f7 {[%emt 0:00:14]} Nf4+ {[%emt 0:01:25]} 47. Bxf4 {[%emt 0:00:18]} Rf8 {[%emt 0:00:04]} 48. Kg6 {[%emt 0:00:24]} b5 {[%emt 0:01:35]} 49. h7 {[%emt 0:00:17]} d2 {[%emt 0:00:15]} 50. Bxd2 {[%emt 0:00:05]} Rxf7 {[%emt 0:00:05]} 51. h8=Q+ {[%emt 0:00:15]} Ka7 {[%emt 0:00:22]} 52. Kxf7 {[%emt 0:00:14]} Kb6 {[%emt 0:00:11]} 53. Be3+ {[%emt 0:00:19]} Kc6 {[%emt 0:00:12]} 54. g4 {[%emt 0:00:20]} Kd5 {[%emt 0:00:25]} 55. Qd4+ {[%emt 0:00:15]} Kc6 {[%emt 0:00:22]} 56. Qc5+ {[%emt 0:00:20]} Kd7 {[%emt 0:00:12]} 57. Qxb5+ {[%emt 0:00:14]} Kd6 {[%emt 0:00:19]} 58. g5 {[%emt 0:00:13]} Kc7 {[%emt 0:00:15]} 59. Qb6+ {[%emt 0:00:24]} Kd7 {[%emt 0:00:19]} 60. g6 {[%emt 0:00:34]} Kc8 {[%emt 0:00:18]} 61. g7 {[%emt 0:00:16]} Kd7 {[%emt 0:00:10]} 62. g8=Q {[%emt 0:01:05] normal} 1/2-1/2

[Event "DVM U12w 2023"]
[Site "Magdeburg"]
[Date "2023.12.29"]
[Round "5"]
[White "Wieckowicz, Bui Ha My"]
[Black "Böhrer, Lea Marie"]
[Result "1-0"]
[WhiteElo "940"]
[BlackElo "939"]
[PlyCount "77"]
[EventDate "2022.12.27"]
[EventType "team-tourn"]
[EventRounds "7"]
[EventCountry "GER"]
[TimeControl "40/5400+30:1800+30"]
[WhiteClock "0:53:38"]
[BlackClock "1:28:23"]

1. e4 {[%emt 0:00:01]} e5 {[%emt 0:00:07]} 2. Nf3 {[%emt 0:00:02]} Nc6 {[%emt 0:00:09]} 3. Bb5 {[%emt 0:00:08]} Nf6 {[%emt 0:00:04]} 4. Nc3 {[%emt 0:00:06]} a6 {[%emt 0:00:24]} 5. Ba4 {[%emt 0:00:46]} Bc5 {[%emt 0:00:08]} 6. O-O {[%emt 0:00:16]} d6 {[%emt 0:00:28]} 7. d3 {[%emt 0:02:05]} Be6 {[%emt 0:00:27]} 8. Bxc6+ {[%emt 0:01:01]} bxc6 {[%emt 0:00:10]} 9. d4 {[%emt 0:06:59]} exd4 {[%emt 0:01:18]} 10. Nxd4 {[%emt 0:00:18]} Bd7 {[%emt 0:00:32]} 11. Be3 {[%emt 0:01:50]} Bb4 {[%emt 0:01:21]} 12. Qd3 {[%emt 0:01:56]} O-O {[%emt 0:01:10]} 13. a3 {[%emt 0:02:16]} Bxc3 {[%emt 0:00:06]} 14. Qxc3 {[%emt 0:00:07]} Nxe4 {[%emt 0:01:21]} 15. Qd3 {[%emt 0:01:39]} Re8 {[%emt 0:00:28]} 16. Rfe1 {[%emt 0:00:57]} d5 {[%emt 0:00:20]} 17. f3 {[%emt 0:02:11]} f5 {[%emt 0:00:11]} 18. fxe4 {[%emt 0:04:47]} Rxe4 {[%emt 0:00:53]} 19. Bf2 {[%emt 0:00:31]} Qe8 {[%emt 0:00:11]} 20. Rxe4 {[%emt 0:09:27]} dxe4 {[%emt 0:00:49]} 21. Bg3 {[%emt 0:02:07]} c5 {[%emt 0:00:18]} 22. Qc4+ {[%emt 0:00:36]} Kh8 {[%emt 0:00:27]} 23. Qxc5 {[%emt 0:00:10]} h6 {[%emt 0:01:27]} 24. Bxc7 {[%emt 0:00:21]} Rc8 {[%emt 0:00:45]} 25. Qa5 {[%emt 0:04:28]} Kh7 {[%emt 0:00:59]} 26. Bd6 {[%emt 0:02:13]} Rd8 {[%emt 0:00:38]} 27. Qxa6 {[%emt 0:01:53]} Bc8 {[%emt 0:00:16]} 28. Qb6 {[%emt 0:01:41]} e3 {[%emt 0:00:40]} 29. Bc7 Rxd4 {[%emt 0:00:30]} 30. Qxd4 e2 {[%emt 0:00:30]} 31. Bg3 f4 {[%emt 0:00:30]} 32. Bf2 Ba6 {[%emt 0:00:30]} 33. Qxf4 Qb8 {[%emt 0:00:30]} 34. Qxb8 Kg6 {[%emt 0:00:30]} 35. Qb6+ Kh7 {[%emt 0:00:30]} 36. Qxa6 e1=Q+ {[%emt 0:00:30]} 37. Rxe1 Kg8 {[%emt 0:00:30]} 38. Qd3 Kh8 {[%emt 0:00:30]} 39. Re8# {normal} 1-0

[Event "DVM U12w 2023"]
[Site "Magdeburg"]
[Date "2023.12.29"]
[Round "5"]
[White "Du, Melina"]
[Black "Winkler, Anni"]
[Result "0-1"]
[WhiteElo "934"]
[BlackElo "1038"]
[PlyCount "108"]
[EventDate "2022.12.27"]
[EventType "team-tourn"]
[EventRounds "7"]
[EventCountry "GER"]
[TimeControl "40/5400+30:1800+30"]
[WhiteClock "1:11:37"]
[BlackClock "1:09:28"]

1. e4 {[%emt 0:00:01]} c5 {[%emt 0:00:18]} 2. Nf3 {[%emt 0:00:06]} Nc6 {[%emt 0:00:16]} 3. d4 {[%emt 0:00:07]} cxd4 {[%emt 0:00:22]} 4. Nxd4 {[%emt 0:00:12]} Nf6 {[%emt 0:00:31]} 5. Be3 {[%emt 0:00:34]} Nxe4 {[%emt 0:03:44]} 6. Nxc6 {[%emt 0:00:10]} bxc6 {[%emt 0:00:07]} 7. Bd3 {[%emt 0:00:29]} Nf6 {[%emt 0:00:52]} 8. O-O {[%emt 0:00:36]} e6 {[%emt 0:04:00]} 9. Nc3 {[%emt 0:00:23]} Be7 {[%emt 0:01:40]} 10. Qe2 {[%emt 0:01:24]} d5 {[%emt 0:00:52]} 11. Bd4 {[%emt 0:01:37]} Bd6 {[%emt 0:06:12]} 12. Rfe1 {[%emt 0:03:23]} O-O {[%emt 0:02:56]} 13. Qf3 {[%emt 0:01:27]} Be7 {[%emt 0:01:23]} 14. Bxf6 {[%emt 0:00:28]} Bxf6 {[%emt 0:00:09]} 15. Qh3 {[%emt 0:01:26]} h6 {[%emt 0:00:17]} 16. Re2 {[%emt 0:01:34]} e5 {[%emt 0:00:34]} 17. Bf5 {[%emt 0:01:11]} Re8 {[%emt 0:01:09]} 18. Bxc8 {[%emt 0:00:33]} Rxc8 {[%emt 0:00:34]} 19. Rd1 {[%emt 0:02:34]} Qb6 {[%emt 0:03:41]} 20. b3 {[%emt 0:00:45]} Qa5 {[%emt 0:01:55]} 21. Ra1 {[%emt 0:01:08]} e4 {[%emt 0:03:50]} 22. Ree1 {[%emt 0:03:25]} Bxc3 {[%emt 0:00:00]} 23. Qe3 {[%emt 0:06:47]} Bxe1 {[%emt 0:00:00]} 24. Rxe1 {[%emt 0:00:10]} Qxa2 {[%emt 0:00:00]} 25. Rc1 {[%emt 0:01:03]} c5 {[%emt 0:00:00]} 26. c4 {[%emt 0:00:20]} dxc4 {[%emt 0:00:34]} 27. bxc4 Qb2 28. h3 Qd4 29. Qa3 e3 30. fxe3 Rxe3 31. Qa1 Qxa1 32. Rxa1 Rc3 33. Rxa7 Rxc4 34. g4 Re4 35. Ra5 c4 36. Ra2 c3 37. Rc2 Rd4 38. Kf2 Rd2+ 39. Rxd2 cxd2 40. Ke2 Rd8 41. Kd1 g6 42. h4 f6 43. h5 gxh5 44. gxh5 f5 45. Ke2 d1=Q+ 46. Ke3 Kf7 47. Kf4 Qxh5 48. Ke5 f4+ 49. Kxf4 Rd4+ 50. Ke3 Ra4 51. Kd3 Qh3+ 52. Kc2 Ra2+ 53. Kb1 Rg2 54. Kc1 Qh1# {normal} 0-1

[Event "DVM U12w 2023"]
[Site "Magdeburg"]
[Date "2023.12.29"]
[Round "5"]
[White "Rabus, Luise"]
[Black "Haas, Valentina"]
[Result "1/2-1/2"]
[WhiteElo "913"]
[BlackElo "1010"]
[PlyCount "46"]
[EventDate "2022.12.27"]
[EventType "team-tourn"]
[EventRounds "7"]
[EventCountry "GER"]
[TimeControl "40/5400+30:1800+30"]
[WhiteClock "1:25:02"]
[BlackClock "1:23:56"]

1. e4 {[%emt 0:00:01]} e5 {[%emt 0:00:08]} 2. Bc4 {[%emt 0:00:07]} Nf6 {[%emt 0:00:20]} 3. d3 {[%emt 0:00:13]} Bc5 {[%emt 0:00:16]} 4. Nf3 {[%emt 0:00:16]} d6 {[%emt 0:00:13]} 5. h3 {[%emt 0:00:22]} h6 {[%emt 0:00:12]} 6. c3 {[%emt 0:00:08]} Nc6 {[%emt 0:00:08]} 7. O-O {[%emt 0:00:38]} O-O {[%emt 0:00:30]} 8. Re1 {[%emt 0:01:18]} Re8 {[%emt 0:00:13]} 9. Nbd2 {[%emt 0:00:34]} Be6 {[%emt 0:03:29]} 10. Bb3 {[%emt 0:00:22]} Nh5 {[%emt 0:02:30]} 11. Nh2 {[%emt 0:00:40]} Ng3 {[%emt 0:00:29]} 12. Ndf1 {[%emt 0:00:55]} Nxf1 {[%emt 0:01:06]} 13. Nxf1 {[%emt 0:00:21]} Qf6 {[%emt 0:01:16]} 14. Ng3 {[%emt 0:01:10]} Ne7 {[%emt 0:00:41]} 15. Be3 {[%emt 0:01:13]} Bb6 {[%emt 0:00:27]} 16. d4 {[%emt 0:00:48]} Rad8 {[%emt 0:03:21]} 17. Ba4 {[%emt 0:01:51]} Bd7 {[%emt 0:00:00]} 18. dxe5 {[%emt 0:02:03]} Qxe5 {[%emt 0:00:00]} 19. Bxb6 {[%emt 0:01:13]} axb6 {[%emt 0:00:31]} 20. Nf5 {[%emt 0:00:54]} Bxa4 {[%emt 0:00:41]} 21. Nxe7+ {[%emt 0:00:23]} Qxe7 {[%emt 0:00:31]} 22. Qxa4 {[%emt 0:00:41]} Ra8 {[%emt 0:00:23]} 23. Qd4 {[%emt 0:00:47]} Qe5 {[%emt 0:00:39] normal} 1/2-1/2